bitfinex/quotes_ETHUSD_20220119
["timestamp","ask_amount","ask_price","bid_price","bid_amount"]
[1642581857372,0.00113685,3059.6,3059.1,2.78102286]
[1642581857570,0.81853685,3059.6,3059.1,2.78102286]
[1642581857771,0.81853685,3059.6,3059.2,0.00113685]
[1642581858578,0.81853685,3059.6,3059.2,2.78045444]
[1642581858774,0.81853685,3059.6,3059.3,2.77931759]
[1642581858975,1.63597685,3059.6,3059.4,2.77931759]
[1642581859175,1.63597685,3059.6,3059.5,2.77931759]
[1642581859374,1.63597685,3059.6,3059.2,2.78045444]
[1642581860023,1.63597685,3059.6,3059.3,2.77931759]
[1642581860223,1.63597685,3059.6,3059.4,2.77931759]
[1642581860424,1.63597685,3059.6,3059.5,2.77931759]
[1642581860827,1.63597685,3059.6,3059.2,0.00113685]
[1642581861231,2.45346685,3059.6,3059.2,2.77931759]
[1642581861528,0.8175,3059.4,3059.3,2.77931759]
[1642581862028,0.8175,3059.4,3059.2,0.00113685]
[1642581862225,1.63504,3059.4,3059.2,0.00113685]
[1642581862427,1.63504,3059.4,3059.1,0.00170527]
[1642581862627,2.45268,3059.4,3059.2,0.00113685]
[1642581862827,2.45268,3059.4,3059.1,0.00170527]
[1642581863029,0.81766,3059.3,3059.2,0.00113685]
[1642581863229,0.81766,3059.3,3059.0,0.00227369]
[1642581864683,0.81766,3059.3,3059.0,2.78159128]
[1642581865083,0.81766,3059.3,3059.1,0.00170527]
[1642581865883,0.81766,3059.3,3059.0,0.00227369]
[1642581866288,0.81766,3059.3,3059.0,1.66478667]
[1642581866483,0.52486,3059.3,3059.1,2.77931759]
[1642581866684,0.52486,3059.3,3059.2,2.77931759]
[1642581866985,0.52486,3059.3,3059.2,0.00113685]
[1642581867213,0.52486,3059.3,3059.2,2.40113685]
[1642581867419,0.52486,3059.3,3059.2,2.4]
[1642581867618,0.52486,3059.3,3059.2,5.18045444]
[1642581868326,0.52486,3059.3,3059.2,2.78045444]
[1642581868723,0.52486,3059.3,3059.2,0.00113685]
[1642581869124,0.52486,3059.3,3059.1,0.00170527]
[1642581869325,0.52486,3059.3,3059.2,2.45113685]
[1642581869528,1.3424371,3059.3,3059.2,5.22931759]
[1642581869726,1.3424371,3059.3,3059.2,2.78045444]
[1642581870126,1.3424371,3059.3,3059.2,0.00113685]
[1642581870526,1.3424371,3059.3,3059.0,2.77931759]
[1642581870527,1.3424371,3059.3,3059.1,0.00170527]
[1642581871585,1.0476371,3059.3,3059.1,2.78102286]
[1642581871781,0.52486,3059.3,3059.1,2.78102286]
[1642581871980,0.52486,3059.3,3059.2,0.00113685]
[1642581872981,0.81752,3059.3,3059.2,0.00113685]
[1642581873382,0.81752,3059.3,3059.2,2.78045444]
[1642581873782,0.81752,3059.3,3059.2,0.00113685]
[1642581874482,0.81752,3059.3,3059.2,2.78045444]
[1642581875517,0.81752,3059.3,3059.2,0.00113685]
[1642581875922,0.81752,3059.3,3059.1,2.78102286]
[1642581876124,2.45264,3059.3,3059.1,4.44353584]
[1642581876324,3.2702064,3059.3,3059.2,2.78045444]
[1642581876623,2.9721064,3059.3,3059.2,2.78045444]
[1642581876826,2.9721064,3059.3,3059.2,0.00113685]
[1642581877224,1.6353,3059.2,3059.1,2.78102286]
[1642581877423,1.63506,3059.3,3059.1,2.78102286]
[1642581877622,0.81752,3059.3,3059.2,2.77931759]
[1642581877823,0.81752,3059.3,3059.2,2.78045444]
[1642581878225,0.81752,3059.3,3059.2,0.00113685]
[1642581878672,0.81752,3059.3,3059.1,2.77931759]
[1642581878673,1.6351299,3059.3,3059.1,2.77931759]
[1642581878971,1.6351299,3059.3,3059.2,2.78045444]
[1642581879173,1.6351299,3059.3,3059.2,0.00113685]
[1642581879572,1.6351299,3059.3,3059.1,2.77931759]
[1642581879772,1.6351299,3059.3,3059.2,2.77931759]
[1642581879975,1.6351299,3059.3,3059.2,0.00113685]
[1642581880375,1.6351299,3059.3,3059.1,0.00170527]
[1642581881477,1.6351299,3059.3,3059.1,4.44353584]
[1642581881677,1.6351299,3059.3,3059.2,2.77931759]
[1642581881880,1.6351299,3059.3,3059.2,2.78045444]
[1642581881881,1.3374299,3059.3,3059.2,2.78045444]
[1642581882076,1.3374299,3059.3,3059.2,0.00113685]
[1642581883521,1.3374299,3059.3,3059.1,0.00170527]
[1642581883918,1.3374299,3059.3,3059.0,2.78159128]
[1642581884119,1.63533,3059.2,3059.1,2.77931759]
[1642581884317,1.63533,3059.2,3059.1,2.78102286]
[1642581884525,9.2322834,3059.2,3059.1,2.78102286]
[1642581884721,5.6,3059.1,3058.9,2.77931759]
[1642581884918,2.26309616,3059.0,3058.8,0.005484]
[1642581885121,2.26309616,3059.0,3058.7,3.3]
[1642581885122,2.75,3058.9,3058.7,3.3]
[1642581885319,3.27134,3058.9,3058.7,3.3]
[1642581885518,7.16009509,3058.8,3058.7,3.3]
[1642581885721,7.16009509,3058.8,3058.5,1.66251298]
[1642581885722,4.75,3058.7,3058.5,1.66251298]
[1642581885967,6.3857385,3058.7,3058.4,1.66251298]
[1642581886173,1.0,3058.6,3058.4,1.66251298]
[1642581886371,1.0,3058.6,3058.2,2.49376948]
[1642581886372,8.77503805,3058.5,3058.2,1.66251298]
[1642581886572,10.71097805,3058.5,3058.2,1.66251298]
[1642581886772,10.71097805,3058.5,3058.3,0.00113685]
[1642581886773,4.92895805,3058.5,3058.3,0.00113685]
[1642581886971,1.34096,3058.4,3058.3,0.00113685]
[1642581888174,1.34096,3058.4,3058.2,0.00170527]
[1642581888373,1.34096,3058.4,3058.2,1.66421825]
[1642581888374,2.1589,3058.4,3058.2,1.66421825]
[1642581888572,0.81797,3058.3,3058.2,1.66421825]
[1642581889174,2.9768683,3058.4,3058.3,2.48203]
[1642581889575,2.9768683,3058.4,3058.3,4.14440355]
[1642581891145,0.81794,3058.4,3058.3,6.97579948]
[1642581891339,4.1464,3059.4,3058.4,3.63004473]
[1642581891637,4.1464,3059.4,3059.0,1.14215512]
[1642581891838,0.2898,3059.4,3059.0,1.14215512]
[1642581892040,0.81758,3059.3,3059.0,3.05630801]
[1642581892239,1.63514,3059.3,3059.0,3.05630801]
[1642581892443,0.00397896,3059.2,3059.0,3.05630801]
[1642581892840,0.00341054,3059.1,3059.0,3.05630801]
[1642581893341,0.00341054,3059.1,3059.0,4.98423437]
[1642581893571,0.00341054,3059.1,3059.0,4.71839023]
[1642581893773,0.00341054,3059.1,3059.0,3.05630801]
[1642581893974,0.00341054,3059.1,3059.0,4.90013834]
[1642581894187,0.00341054,3059.1,3059.0,3.05630801]
[1642581894377,0.00341054,3059.1,3059.0,4.9768443]
[1642581894577,0.00341054,3059.1,3059.0,7.77061378]
[1642581894778,0.00341054,3059.1,3059.0,11.02061378]
[1642581894981,0.00341054,3059.1,3059.0,4.9768443]
[1642581895776,0.00341054,3059.1,3059.0,4.91799588]
[1642581895977,0.00341054,3059.1,3059.0,4.92780243]
[1642581896177,0.00341054,3059.1,3059.0,4.95236376]
[1642581896378,0.00341054,3059.1,3059.0,4.72916434]
[1642581896979,0.00341054,3059.1,3059.0,6.68463063]
[1642581897224,0.52748054,3059.3,3059.1,6.7]
[1642581897426,0.52748054,3059.3,3059.2,3.52708806]
[1642581897631,3.74137,3060.5,3059.2,3.52708806]
[1642581897632,0.85355368,3060.8,3059.2,1.87752333]
[1642581897826,0.81719,3060.6,3060.3,1.17093974]
[1642581898023,0.81719,3060.6,3060.4,0.09273036]
[1642581898224,0.57514793,3060.6,3060.4,0.09273036]
[1642581898424,1.63443,3060.6,3060.5,2.05915078]
[1642581898821,1.63443,3060.6,3060.3,1.17093974]
[1642581899826,1.63443,3060.6,3060.4,2.77870339]
[1642581900974,1.63443,3060.6,3060.4,2.78965964]
[1642581901174,0.81724,3060.6,3060.5,2.77870339]
[1642581902274,0.21414,3060.6,3060.5,2.77870339]
[1642581902678,0.001828,3060.7,3060.5,2.77870339]
[1642581904475,0.001828,3060.7,3060.5,2.7392537]
[1642581904924,0.001828,3060.7,3060.6,4.3]
[1642581905124,0.001828,3060.7,3060.6,6.3]
[1642581905426,0.00296484,3060.7,3060.6,4.3]
[1642581905821,0.00296484,3060.7,3060.6,4.36931]
[1642581906225,0.00296484,3060.7,3060.5,0.8528431]
[1642581906624,0.00296484,3060.7,3060.5,0.2726431]
[1642581907425,0.00296484,3060.7,3060.6,4.77497263]
[1642581907625,6.45125,3061.9,3060.7,3.35]
[1642581907828,6.45125,3061.9,3061.3,1.41327052]
[1642581907829,0.3,3061.6,3061.3,1.41327052]
[1642581908030,2.585678,3061.9,3060.8,8.63931806]
[1642581908031,1.93385,3061.9,3060.8,8.63931806]
[1642581908227,0.81699,3061.7,3060.8,6.6658]
[1642581908489,1.63385,3061.6,3060.8,6.6658]
[1642581908682,1.63385,3061.6,3060.9,1.88166383]
[1642581908683,0.81698,3061.4,3060.9,1.88166383]
[1642581908983,0.81699,3061.3,3060.8,6.6658]
[1642581909181,0.82040055,3061.3,3060.8,6.6658]
[1642581909382,0.00284212,3061.2,3061.1,1.453211]
[1642581909785,0.00284212,3061.2,3061.1,4.53421317]
[1642581910084,9.75006055,3062.4,3061.3,7.15]
[1642581910292,1.0,3064.6,3062.3,1.27169597]
[1642581910488,1.0,3064.6,3063.8,0.01242193]
[1642581910689,0.001828,3064.4,3063.9,0.13862194]
[1642581911188,0.81618,3064.6,3064.3,0.01247508]
[1642581911384,1.5333104,3065.1,3064.6,5.35]
[1642581911583,1.5333104,3065.1,3064.7,0.07190262]
[1642581911887,0.00284211,3065.0,3064.7,0.7839]
[1642581912085,2.20574277,3064.9,3064.7,0.7839]
[1642581912327,0.00227369,3064.9,3064.7,0.7839]
[1642581912530,7.2,3064.7,3064.0,0.00284212]
[1642581912731,35.45534048,3064.9,3064.1,5.35]
[1642581912936,35.45534048,3064.9,3063.9,0.00511581]
[1642581913132,0.00113684,3065.0,3064.2,0.00341054]
[1642581913335,0.09443684,3065.0,3063.9,0.00511581]
[1642581913532,19.15,3064.5,3063.9,0.00511581]
[1642581913933,19.15,3064.3,3063.4,0.00795793]
[1642581914134,2.51304347,3064.2,3063.2,0.00909478]
[1642581914335,0.3,3064.1,3063.2,0.00909478]
[1642581914735,0.3,3064.1,3063.6,1.453211]
[1642581914736,2.01361031,3064.0,3063.6,1.453211]
[1642581915135,1.3,3064.1,3063.7,0.00625266]
[1642581915335,0.3,3064.1,3063.7,0.00625266]
[1642581915735,1.11651,3064.1,3063.7,0.00625266]
[1642581916388,0.3,3064.1,3063.7,0.00625266]
[1642581916995,1.0,3064.3,3063.7,0.00625266]
[1642581917192,0.81647,3064.2,3063.7,0.00625266]
[1642581917395,19.15,3064.1,3063.7,0.00625266]
[1642581917593,19.45,3064.1,3063.7,0.00625266]
[1642581917795,0.81647,3064.2,3063.7,0.00625266]
[1642581918395,19.15,3064.3,3063.7,0.00625266]
[1642581918995,19.15,3064.3,3063.7,0.13675266]
[1642581919398,3.865,3064.9,3064.4,4.44088991]
[1642581919597,3.865,3064.9,3064.5,1.95334989]
[1642581919824,0.00113684,3065.0,3064.6,0.06573393]
[1642581920024,0.00113684,3065.0,3064.8,0.77696006]
[1642581920224,0.00113684,3065.0,3064.8,0.7266055]
[1642581921329,0.00113684,3065.0,3064.9,6.8305]
[1642581921932,0.2,3065.8,3065.2,2.48196101]
[1642581922233,0.00397897,3065.7,3065.3,0.1303]
[1642581922431,0.00397897,3065.7,3065.5,1.17719761]
[1642581922631,0.00341054,3065.6,3065.3,0.1303]
[1642581922830,2.16158536,3066.4,3065.4,3.0]
[1642581923031,0.0933,3066.4,3065.4,3.00113685]
[1642581923232,0.8159,3066.2,3065.4,3.00113685]
[1642581923473,0.8159,3066.2,3065.4,0.00113685]
[1642581923681,0.00284212,3066.1,3065.4,0.00113685]
[1642581923877,1.92307473,3066.1,3065.3,0.00170527]
[1642581924077,1.1159,3066.2,3065.4,0.1303]
[1642581924078,0.0022737,3066.0,3065.4,0.1303]
[1642581924276,0.0022737,3066.0,3065.4,1.1366]
[1642581924475,0.00170527,3065.9,3065.4,1.1366]
[1642581924877,0.00113685,3065.8,3065.4,1.1366]
[1642581925285,0.00341054,3066.2,3065.8,0.7266055]
[1642581925477,0.00341054,3066.2,3065.8,1.453211]
[1642581925678,0.00284212,3066.1,3065.8,1.453211]
[1642581926079,19.15,3066.3,3065.8,1.453211]
[1642581926080,0.0022737,3066.0,3065.8,1.453211]
[1642581926481,0.00170527,3065.9,3065.8,1.453211]
[1642581927929,20.1518305,3066.6,3066.0,0.08458027]
[1642581928330,0.00113685,3066.1,3065.8,1.453211]
[1642581928940,0.00113685,3066.1,3065.9,1.52590205]
[1642581929137,0.00113685,3066.1,3065.9,0.1303]
[1642581929337,0.00113685,3066.1,3065.9,2.27416431]
[1642581929536,0.00113685,3066.1,3065.9,0.4303]
[1642581930136,0.00113685,3066.1,3066.0,8.09249475]
[1642581930537,0.00113685,3066.1,3066.0,1.96910025]
[1642581930736,0.0018305,3066.6,3066.1,4.8522737]
[1642581931186,0.0022737,3066.5,3066.2,1.83641771]
[1642581931591,0.00170527,3066.4,3066.3,9.87432883]
[1642581931992,0.81551,3067.6,3067.4,5.91280848]
[1642581932190,0.817373,3067.6,3067.4,5.91280848]
[1642581932587,0.001863,3067.6,3067.4,5.91280848]
[1642581932988,19.673143,3067.7,3067.4,5.91280848]
[1642581933389,7.2,3067.5,3066.5,2.0]
[1642581933591,1.66430137,3067.1,3066.5,0.3]
[1642581933788,2.47993137,3067.1,3066.4,6.8845]
[1642581933988,0.00341054,3067.0,3066.4,6.8845]
[1642581934191,0.00341054,3067.0,3066.5,1.93343653]
[1642581934388,0.00284212,3066.9,3066.5,4.7074082]
[1642581934588,20.15,3067.5,3066.5,1.93343653]
[1642581934589,0.81563,3067.1,3066.5,1.93343653]
[1642581934833,0.00341054,3067.0,3066.6,0.00170527]
[1642581935233,0.00341054,3067.0,3066.5,1.87459989]
[1642581935432,0.00341054,3067.0,3066.6,0.1303]
[1642581935631,0.00341054,3067.0,3066.6,0.13200527]
[1642581935833,0.00341054,3067.0,3066.8,0.7266055]
[1642581936033,0.00341054,3067.0,3066.8,1.583511]
[1642581936837,0.00341054,3067.0,3066.8,1.453211]
[1642581937835,0.00341054,3067.0,3066.9,7.38323315]
[1642581938034,17.35722905,3067.5,3067.0,2.9]
[1642581938486,17.35722905,3067.5,3066.9,0.00341054]
[1642581938487,17.35722905,3067.5,3067.1,0.00227369]
[1642581938682,1.74911121,3067.4,3067.1,0.00227369]
[1642581938881,1.74911121,3067.4,3066.9,0.00341054]
[1642581939282,17.35722905,3067.5,3066.9,0.00341054]
[1642581939683,17.65722905,3067.5,3066.9,0.00341054]
[1642581939885,17.35722905,3067.5,3066.9,1.89120715]
[1642581940284,17.35722905,3067.5,3067.0,0.00284212]
[1642581940486,2.17774632,3067.4,3067.0,0.00284212]
[1642581940687,2.17774632,3067.4,3066.9,0.00341054]
[1642581940887,0.81541,3067.8,3067.4,3.77424587]
[1642581941187,19.45,3067.8,3067.4,4.50085137]
[1642581941386,19.45,3067.8,3067.4,5.22745687]
[1642581941387,1.63208685,3067.7,3067.4,5.22745687]
[1642581941586,0.00113685,3067.7,3067.4,5.22745687]
[1642581941989,19.15,3068.3,3068.1,0.0059297]
[1642581942228,19.9671005,3068.3,3068.1,0.0059297]
[1642581942429,21.7807,3068.2,3068.1,0.0059297]
[1642581942627,20.15,3068.2,3068.1,0.0059297]
[1642581942826,19.15,3068.2,3068.1,0.0059297]
[1642581943029,18.8582,3068.2,3068.1,0.0059297]
[1642581943230,20.85045253,3068.2,3068.1,0.0059297]
[1642581943530,22.48110253,3068.2,3068.1,0.0059297]
[1642581943932,22.78110253,3068.2,3068.1,0.0059297]
[1642581944131,20.48885,3068.2,3068.1,0.0059297]
[1642581944333,18.8582,3068.2,3068.1,0.0059297]
[1642581945232,20.99266632,3068.2,3068.1,0.0059297]
[1642581945834,21.29266632,3068.2,3068.1,0.0059297]
[1642581946805,21.29266632,3068.2,3068.1,1.4591407]
[1642581947005,22.29266632,3068.2,3068.1,1.4591407]
[1642581948005,20.99266632,3068.2,3068.1,1.4591407]
[1642581948207,20.99676632,3068.2,3068.1,1.4591407]
[1642581948406,21.99676632,3068.2,3068.1,1.4591407]
[1642581948806,0.81545,3067.9,3067.5,6.75013685]
[1642581949608,3.26406369,3068.1,3068.0,2.5041963]
[1642581950039,3.2636455,3068.1,3068.0,2.5041963]
[1642581950442,1.6327555,3068.1,3068.0,2.5041963]
[1642581950638,21.7827555,3068.1,3068.0,2.5041963]
[1642581950849,26.35,3067.9,3067.4,1.75869257]
[1642581951042,8.671,3067.8,3067.6,0.01391605]
[1642581951239,8.671,3067.8,3066.5,1.0]
[1642581951240,0.2236,3067.7,3066.5,1.0]
[1642581951446,1.63158,3067.5,3066.5,1.0]
[1642581951640,1.63158,3067.5,3066.6,0.00511581]
[1642581951641,19.15,3067.3,3066.6,0.00511581]
[1642581951840,19.15,3067.0,3066.6,0.00511581]
[1642581952444,19.15,3067.0,3066.3,0.00682108]
[1642581952641,1.63128,3067.2,3066.4,2.9037722]
[1642581952839,1.63128,3067.2,3066.5,2.7734722]
[1642581953042,0.8156,3066.8,3066.5,2.77915643]
[1642581953242,0.7062,3067.3,3066.8,1.6312]
[1642581953492,0.1303,3067.2,3066.8,1.6312]
[1642581953693,0.1303,3067.3,3066.9,0.00341054]
[1642581954092,20.39597,3067.3,3066.9,0.00341054]
[1642581954291,0.94598,3067.3,3066.9,0.00341054]
[1642581954691,0.81568,3067.3,3066.9,0.00341054]
[1642581955399,19.96568,3067.3,3066.9,2.77678352]
[1642581955800,19.96568,3067.3,3067.0,0.00284212]
[1642581955998,1.0,3067.2,3067.0,0.00284212]
[1642581956599,1.0,3067.2,3066.9,0.00341054]
[1642581957455,3.0193133,3067.2,3066.9,0.00341054]
[1642581957659,3.04624591,3067.2,3066.9,0.00341054]
[1642581957853,20.096,3067.1,3066.9,0.00341054]
[1642581958053,0.8157,3067.0,3066.9,0.00341054]
[1642581958456,0.5165,3067.0,3066.9,0.00341054]
[1642581961185,24.4,3066.9,3066.8,1.6312]
[1642581961387,19.15,3066.9,3066.8,1.6312]
[1642581961785,1.46258,3067.0,3066.8,1.6312]
[1642581962286,21.61258,3067.0,3066.8,1.6312]
[1642581962484,21.91258,3067.0,3066.8,1.6312]
[1642581962689,2.76258,3067.0,3066.8,1.6312]
[1642581963087,19.15,3066.9,3066.8,1.6312]
[1642581963485,19.8589,3066.9,3066.8,1.6312]
[1642581963889,1.0,3066.9,3066.8,1.6312]
[1642581964086,2.76258,3067.0,3066.8,1.6312]
[1642581964284,2.63228,3067.0,3066.8,1.6312]
[1642581964485,1.8165,3067.0,3066.8,1.6312]
[1642581965339,20.9665,3067.0,3066.8,1.6312]
[1642581966334,1.5165,3067.0,3066.8,1.6312]
[1642581967336,1.5165,3067.0,3066.6,3.3]
[1642581967337,19.15,3066.8,3066.6,3.3]
[1642581967538,25.06581,3066.7,3066.6,3.3]
[1642581968136,25.06581,3066.7,3066.1,0.0022737]
[1642581968137,4.5,3066.6,3066.1,0.0022737]
[1642581968337,23.65,3066.6,3066.1,0.0022737]
[1642581968583,23.65,3066.6,3066.2,0.00397897]
[1642581968584,23.3577,3066.6,3066.2,0.00397897]
[1642581968988,0.81585,3066.5,3066.2,0.00397897]
[1642581969789,0.3,3066.4,3066.2,0.00397897]
[1642581969992,8.01589,3066.3,3066.2,0.00397897]
[1642581970192,26.4803,3066.2,3066.1,0.0022737]
[1642581970391,27.7803,3066.2,3066.1,0.0022737]
[1642581970791,27.7803,3066.2,3065.3,2.0]
[1642581970792,7.2,3066.1,3065.3,2.0]
[1642581970990,0.471,3066.1,3065.2,8.87536101]
[1642581971190,1.63206,3065.9,3065.4,0.00454738]
[1642581971390,1.93206,3065.9,3065.4,0.00454738]
[1642581971592,2.11605,3065.9,3065.4,0.00454738]
[1642581971992,1.11605,3065.9,3065.4,0.00454738]
[1642581972231,2.11605,3065.9,3065.4,0.00454738]
[1642581972432,0.81592,3065.7,3065.4,0.00454738]
[1642581973241,0.81592,3065.7,3065.4,3.30454738]
[1642581973636,0.51952,3065.7,3065.5,0.00397896]
[1642581974437,0.51952,3065.7,3065.4,1.90691894]
[1642581974636,0.51952,3065.7,3065.5,0.00397896]
[1642581977195,19.2803,3066.1,3065.3,2.00511581]
[1642581977196,0.1303,3066.1,3065.3,2.00511581]
[1642581977396,0.81578,3065.9,3065.4,2.77429732]
[1642581977796,0.81578,3065.9,3065.5,0.00397896]
[1642581978398,0.81578,3065.9,3065.5,1.81775894]
[1642581978595,0.81578,3065.9,3065.5,2.63353114]
[1642581978795,0.51838,3065.9,3065.6,0.00341054]
[1642581979596,0.51838,3065.9,3065.3,0.00511581]
[1642581980036,19.15,3065.8,3065.3,0.00511581]
[1642581980236,0.81595,3065.7,3065.3,0.00511581]
[1642581981042,19.45,3065.6,3065.4,0.01271709]
[1642581981245,19.2803,3065.5,3065.4,0.01271709]
[1642581981438,20.2803,3065.5,3065.4,0.01271709]
[1642581981637,20.3736,3065.5,3065.4,0.01271709]
[1642581981841,7.91624,3065.4,3064.5,2.0]
[1642581982042,0.9465204,3065.3,3064.2,7.1114]
[1642581982241,19.15,3065.2,3064.6,0.00909477]
[1642581982441,20.0965,3065.1,3064.6,0.00909477]
[1642581982641,20.91275,3065.1,3064.6,0.00909477]
[1642581983040,18.61275,3065.1,3064.6,0.00909477]
[1642581983690,19.42901,3065.0,3064.6,0.00909477]
[1642581983884,19.13401,3065.0,3064.6,0.00909477]
[1642581984085,0.81624,3064.9,3064.6,0.00909477]
[1642581985384,1.6325,3064.9,3064.6,0.00909477]
[1642581985586,0.81626,3064.8,3064.6,0.00909477]
[1642581986686,20.96626,3064.8,3064.6,0.00909477]
[1642581987562,1.81626,3064.8,3064.6,0.00909477]
[1642581987762,0.81626,3064.8,3064.6,0.00909477]
[1642581988363,0.81626,3064.8,3064.5,0.00966319]
[1642581988768,19.15,3064.7,3064.5,0.00966319]
[1642581988970,0.81631,3064.6,3064.5,0.00966319]
[1642581989167,19.67311,3064.6,3064.5,0.00966319]
[1642581989763,20.97311,3064.6,3064.5,0.00966319]
[1642581990369,20.97311,3064.6,3064.0,0.1305]
[1642581990764,20.67311,3064.6,3064.0,0.1305]
[1642581991603,20.67311,3064.6,3063.9,3.8276]
[1642581991604,20.67311,3064.6,3063.9,3.9581]
[1642581991803,3.44898,3064.6,3063.9,3.9581]
[1642581992104,1.81631,3064.6,3063.9,3.9581]
[1642581992906,2.11631,3064.6,3063.9,3.9581]
[1642581993909,1.81631,3064.6,3063.9,3.9581]
[1642581994104,1.51721,3064.6,3063.9,3.9581]
[1642581996340,1.51721,3064.6,3064.0,1.91481481]
[1642581996341,0.51721,3064.6,3064.0,1.91481481]
[1642581996548,0.81607,3064.8,3064.5,0.1181182]
[1642581997442,0.81607,3064.8,3064.3,3.65557914]
[1642581997642,0.81607,3064.8,3064.4,4.57138991]
[1642581997842,0.81607,3064.8,3064.4,4.44088991]
[1642581999284,0.51787,3064.8,3064.4,4.44088991]
[1642581999486,0.81624,3064.6,3064.4,4.44088991]
[1642582002335,0.81606,3064.8,3064.4,4.44088991]
[1642582002736,0.00113684,3064.7,3064.4,4.44088991]
[1642582003336,0.81615,3064.6,3064.4,4.44088991]
[1642582004344,0.52165,3064.6,3064.5,2.7751356]
[1642582004540,0.52165,3064.6,3064.5,2.9056356]
[1642582005743,0.52165,3064.6,3064.5,0.1305]
[1642582006003,0.00113684,3064.7,3064.5,2.90560671]
[1642582006201,0.00113684,3064.7,3064.6,7.37510671]
[1642582006901,0.00113684,3064.7,3064.6,2.77510671]
[1642582008903,0.00113684,3064.7,3064.5,0.1305]
[1642582009103,0.00113684,3064.7,3064.6,8.2249471]
[1642582009307,0.00113684,3064.7,3064.6,2.7749471]
[1642582009507,19.94743684,3065.7,3064.7,4.0]
[1642582009733,19.94743684,3065.7,3064.8,6.6503]
[1642582009934,0.00397897,3065.4,3064.8,6.6503]
[1642582010135,0.81606,3065.3,3064.8,6.6503]
[1642582010334,1.63555054,3065.3,3064.8,6.6503]
[1642582010537,2.13814509,3065.2,3064.8,6.6503]
[1642582010734,2.09609388,3065.2,3064.8,6.6503]
[1642582010934,0.0022737,3065.1,3064.8,6.6503]
[1642582011337,0.00170527,3065.0,3064.8,6.6503]
[1642582011742,0.00113685,3064.9,3064.8,6.9503]
[1642582012046,0.00113685,3064.9,3064.8,8.43413005]
[1642582012238,0.00113685,3064.9,3064.8,9.70303005]
[1642582012637,0.00113685,3064.9,3064.8,11.67823803]
[1642582012840,0.00113685,3064.9,3064.8,11.97823803]
[1642582013910,0.00113685,3064.9,3064.8,11.37823803]
[1642582014512,1.63192,3065.5,3064.9,5.95]
[1642582014715,1.63192,3065.5,3065.0,0.1303]
[1642582014910,0.00284212,3065.4,3065.0,0.1303]
[1642582015111,0.00284212,3065.4,3065.1,0.05340383]
[1642582015312,0.00227369,3065.3,3065.0,0.1303]
[1642582015714,0.00170527,3065.2,3065.0,0.1303]
[1642582016113,0.00113685,3065.1,3065.0,0.1303]
[1642582016313,0.00113685,3065.1,3065.0,2.10645756]
[1642582016512,0.00113685,3065.1,3065.0,5.85645756]
[1642582016913,0.00113685,3065.1,3065.0,4.1631]
[1642582017113,0.00113685,3065.1,3065.0,7.41604943]
[1642582017940,0.00113685,3065.1,3065.0,5.4631]
[1642582018842,0.00113685,3065.1,3065.0,7.32963116]
[1642582019644,0.51868685,3065.6,3065.1,6.1]
[1642582019848,0.51868685,3065.6,3065.2,1.92155853]
[1642582020045,0.00227369,3065.5,3065.2,1.92155853]
[1642582020246,0.00227369,3065.5,3065.3,0.05244934]
[1642582020445,0.00170527,3065.4,3065.2,1.92155853]
[1642582020846,0.81584,3066.2,3065.2,1.92155853]
[1642582020847,0.00113684,3065.3,3065.2,2.73731683]
[1642582021299,0.00113684,3065.3,3065.2,8.13731683]
[1642582021897,0.00113684,3065.3,3065.2,9.13731683]
[1642582022099,0.00113684,3065.3,3065.2,9.90063683]
[1642582022299,0.00113684,3065.3,3065.2,2.73731683]
[1642582022504,0.00113684,3065.3,3065.0,0.15101201]
[1642582023103,19.96596,3065.2,3065.0,0.02061201]
[1642582023301,20.56596,3065.2,3065.0,0.02061201]
[1642582023503,19.96596,3065.2,3065.0,0.02061201]
[1642582023702,0.81596,3065.2,3065.0,0.02061201]
[1642582024739,0.52456,3065.2,3065.0,0.02061201]
[1642582025144,0.82456,3065.2,3065.0,0.02061201]
[1642582025644,2.0631616,3065.1,3065.0,0.02061201]
[1642582025843,21.2131616,3065.1,3065.0,0.02061201]
[1642582026047,22.6841616,3065.1,3065.0,0.02064163]
[1642582026247,0.81633,3064.7,3064.1,3.6371]
[1642582026447,0.81631,3064.6,3064.0,6.7186]
[1642582026648,19.15,3064.5,3064.2,0.00511581]
[1642582026847,0.81631,3064.6,3064.2,0.00511581]
[1642582027049,22.46622911,3065.0,3064.3,2.77540197]
[1642582027250,0.8162,3064.9,3064.3,2.77540197]
[1642582027447,0.8162,3064.9,3064.4,0.00397897]
[1642582027448,2.44895,3064.8,3064.4,0.00397897]
[1642582027652,3.44895,3064.8,3064.5,2.77540197]
[1642582028055,2.44895,3064.8,3064.6,0.00284212]
[1642582028251,2.44895,3064.8,3064.6,2.77824409]
[1642582028502,0.81619,3064.9,3064.6,2.77824409]
[1642582028503,0.81619,3064.9,3064.7,2.77540197]
[1642582028703,0.81619,3064.9,3064.8,2.77540197]
[1642582028907,0.81619,3064.9,3064.8,2.77710724]
[1642582029106,0.81619,3064.9,3064.8,0.00170527]
[1642582029508,0.81619,3064.9,3064.4,2.77540197]
[1642582029707,0.52659,3064.9,3064.4,2.77938094]
[1642582029907,0.52659,3064.9,3064.5,2.77881251]
[1642582030111,0.52659,3064.9,3064.5,0.00341054]
[1642582030310,0.52659,3064.9,3064.6,0.00284212]
[1642582030507,0.52659,3064.9,3064.5,0.00341054]
[1642582030708,0.52659,3064.9,3064.6,0.00284212]
[1642582030906,0.52659,3064.9,3064.4,2.77540197]
[1642582031110,0.52659,3064.9,3064.4,2.77938094]
[1642582031310,0.52659,3064.9,3064.5,2.77881251]
[1642582031509,0.52659,3064.9,3064.6,2.77540197]
[1642582031710,0.52659,3064.9,3064.6,0.00284212]
[1642582031911,0.52659,3064.9,3064.7,0.0022737]
[1642582032113,0.52659,3064.9,3064.3,2.77976404]
[1642582032347,0.81623,3064.7,3064.4,2.77919562]
[1642582032547,0.81623,3064.7,3064.5,2.77521665]
[1642582032548,3.76722964,3064.7,3064.5,2.77521665]
[1642582032743,3.75456105,3064.7,3064.5,2.77862719]
[1642582032948,0.81626,3064.7,3064.1,0.1305]
[1642582033242,0.81626,3064.7,3064.2,2.78047007]
[1642582033243,19.45,3064.7,3064.2,2.78047007]
[1642582033442,19.45,3064.7,3064.3,2.77535426]